fUSD/lending_fUSD_20241207
["ID","MTS","AMOUNT","RATE_DAILY","PERIOD"]
[344542813,1733538672814,-150.0,0.00012558,2]
[344542814,1733538672823,-150.0,0.00012566,2]
[344542815,1733538672833,-150.0,0.00012568,2]
[344542816,1733538672842,-339.4,0.00012592,2]
[344542817,1733538672851,-150.0,0.00012593,2]
[344542818,1733538672861,-150.0,0.00012594,2]
[344542819,1733538672870,-920.34,0.00012596,2]
[344542820,1733538672879,-314.66502549,0.00012596,2]
[344542821,1733538672888,-500.0,0.00012596,2]
[344542822,1733538672897,-500.0,0.00012596,2]
[344542823,1733538672906,-500.0,0.00012596,2]
[344542824,1733538672915,-500.0,0.00012596,2]
[344542825,1733538672924,-500.0,0.00012596,2]
[344542826,1733538672933,-500.0,0.00012596,2]
[344542827,1733538672943,-500.0,0.00012596,2]
[344542828,1733538672952,-500.0,0.00012596,2]
[344542829,1733538672961,-500.0,0.00012596,2]
[344542830,1733538672970,-500.0,0.00012596,2]
[344542831,1733538672979,-500.0,0.00012596,2]
[344542832,1733538672988,-535.83,0.00012596,2]
[344542833,1733538672998,-500.0,0.00012596,2]
[344542834,1733538673007,-500.0,0.00012596,2]
[344542835,1733538673016,-500.0,0.00012596,2]
[344542836,1733538673026,-500.0,0.00012596,2]
[344542837,1733538673036,-500.0,0.00012596,2]
[344542838,1733538673045,-500.0,0.00012596,2]
[344542839,1733538673055,-500.0,0.00012596,2]
[344542840,1733538673064,-500.0,0.00012596,2]
[344542841,1733538673074,-243.43049483,0.00012596,2]
[344542842,1733538673083,-500.0,0.00012596,2]
[344542843,1733538673092,-698.17,0.00012596,2]
[344542844,1733538673102,-500.0,0.00012596,2]
[344542845,1733538673112,-500.0,0.00012596,2]
[344542846,1733538673121,-500.0,0.00012596,2]
[344542847,1733538673130,-501.28317662,0.00012596,2]
[344542848,1733538673140,-470.04696622,0.00012596,2]
[344542849,1733538673149,-500.0,0.00012596,2]
[344542850,1733538673159,-500.0,0.00012596,2]
[344542851,1733538673168,-500.0,0.00012596,2]
[344542852,1733538673178,-500.0,0.00012596,2]
[344542853,1733538673187,-500.0,0.00012596,2]
[344542854,1733538673196,-500.0,0.00012596,2]
[344542855,1733538673205,-710.18,0.00012596,2]
[344542856,1733538673215,-500.0,0.00012596,2]
[344542857,1733538673226,-500.0,0.00012596,2]
[344542858,1733538673235,-500.0,0.00012596,2]
[344542859,1733538673244,-500.0,0.00012596,2]
[344542860,1733538673253,-500.0,0.00012596,2]
[344542861,1733538673263,-500.0,0.00012596,2]
[344542862,1733538673272,-500.0,0.00012596,2]
[344542863,1733538673281,-500.0,0.00012596,2]
[344542864,1733538673290,-500.0,0.00012596,2]
[344542865,1733538673300,-1581.6,0.00012596,2]
[344542866,1733538673309,-948.74,0.00012596,2]
[344542867,1733538673319,-614.09,0.00012596,2]
[344542868,1733538673328,-1046.74,0.00012596,2]
[344542869,1733538673338,-506.44,0.00012596,2]
[344542870,1733538673347,-761.38,0.00012596,2]
[344542871,1733538673357,-849.57,0.00012596,2]
[344542872,1733538673367,-500.0,0.00012596,2]
[344542873,1733538673377,-500.0,0.00012596,2]
[344542874,1733538673386,-566.69,0.00012596,2]
[344542875,1733538673395,-1186.12,0.00012596,2]
[344542876,1733538673404,-500.0,0.00012596,2]
[344542877,1733538673414,-500.0,0.00012596,2]
[344542878,1733538673423,-545.01,0.00012596,2]
[344542879,1733538673432,-500.0,0.00012596,2]
[344542880,1733538673442,-500.0,0.00012596,2]
[344542881,1733538673451,-500.0,0.00012596,2]
[344542882,1733538673461,-952.31,0.00012596,2]
[344542883,1733538673472,-500.0,0.00012596,2]
[344542884,1733538673482,-422.02209386,0.00012596,2]
[344542885,1733538673492,-589.84,0.00012596,2]
[344542886,1733538673501,-529.52,0.00012596,2]
[344542887,1733538673510,-606.23,0.00012596,2]
[344542888,1733538673520,-500.0,0.00012596,2]
[344542889,1733538673530,-299.16428251,0.00012596,2]
[344542890,1733538673539,-3793.97,0.00012596,2]
[344542891,1733538673549,-150.0,0.00012596,2]
[344542892,1733538673559,-544.9,0.00012596,2]
[344542893,1733538673569,-1985.96,0.00012596,2]
[344542894,1733538673578,-500.0,0.00012596,2]
[344542895,1733538673588,-500.0,0.00012596,2]
[344542896,1733538673598,-500.0,0.00012596,2]
[344542897,1733538673607,-500.0,0.00012596,2]
[344542898,1733538673616,-500.0,0.00012596,2]
[344542899,1733538673626,-2261.0,0.00012596,2]
[344542900,1733538673637,-500.0,0.00012596,2]
[344542901,1733538673646,-1000.0,0.00012596,2]
[344542902,1733538673655,-500.0,0.00012596,2]
[344542903,1733538673665,-500.0,0.00012596,2]
[344542904,1733538673674,-500.0,0.00012596,2]
[344542905,1733538673683,-806.39,0.00012596,2]
[344542906,1733538673693,-500.0,0.00012596,2]
[344542907,1733538673702,-500.0,0.00012596,2]
[344542908,1733538673712,-500.0,0.00012596,2]
[344542909,1733538673725,-500.0,0.00012596,2]
[344542910,1733538673735,-500.0,0.00012596,2]
[344542911,1733538673744,-697.68,0.00012596,2]
[344542912,1733538673755,-811.16,0.00012596,2]
[344542913,1733538673764,-500.0,0.00012596,2]
[344542914,1733538673774,-856.38,0.00012596,2]
[344542915,1733538673783,-935.1,0.00012596,2]
[344542916,1733538673792,-624.77,0.00012596,2]
[344542917,1733538673802,-500.0,0.00012596,2]
[344542918,1733538673812,-1468.23,0.00012596,2]
[344542919,1733538673822,-500.0,0.00012596,2]
[344542920,1733538673831,-500.0,0.00012596,2]
[344542921,1733538673840,-4797.17,0.00012596,2]
[344542922,1733538673849,-1275.33,0.00012596,2]
[344542923,1733538673858,-500.0,0.00012596,2]
[344542924,1733538673867,-1057.06,0.00012596,2]
[344542925,1733538673876,-500.0,0.00012596,2]
[344542926,1733538673885,-507.12,0.00012596,2]
[344542927,1733538673894,-500.0,0.00012596,2]
[344542928,1733538673903,-500.0,0.00012596,2]
[344542929,1733538673913,-636.78658668,0.00012596,2]
[344542930,1733538673922,-2743.45,0.00012596,2]
[344542931,1733538673931,-500.0,0.00012596,2]
[344542932,1733538673941,-500.0,0.00012596,2]
[344542933,1733538673950,-500.0,0.00012596,2]
[344542934,1733538673959,-500.0,0.00012596,2]
[344542935,1733538673969,-676.45,0.00012596,2]
[344542936,1733538673978,-408.44753238,0.00012596,2]
[344542937,1733538673988,-191.19771125,0.00012596,2]
[344542938,1733538673998,-1026.51,0.00012596,2]
[344542939,1733538674007,-500.0,0.00012596,2]
[344542940,1733538674016,-620.57,0.00012596,2]
[344542941,1733538674026,-1497.18,0.00012596,2]
[344542942,1733538674036,-4753.16,0.00012596,2]
[344542943,1733538674045,-607.28,0.00012596,2]
[344542944,1733538674055,-778.19,0.00012596,2]
[344542945,1733538674064,-500.0,0.00012596,2]
[344542946,1733538674073,-1146.06,0.00012597,2]
[344542947,1733538674082,-766.7,0.00012597,2]
[344542948,1733538674092,-500.0,0.00012597,2]
[344542949,1733538674101,-500.0,0.00012597,2]
[344542950,1733538674110,-500.0,0.00012597,2]
[344542951,1733538674119,-567.01,0.00012597,2]
[344542952,1733538674129,-514.81,0.00012597,2]
[344542953,1733538674138,-500.0,0.00012597,2]
[344542954,1733538674147,-500.0,0.00012597,2]
[344542955,1733538674156,-657.0,0.00012597,2]
[344542956,1733538674165,-899.98,0.00012597,2]
[344542957,1733538674175,-500.0,0.00012597,2]
[344542958,1733538674184,-500.0,0.00012597,2]
[344542959,1733538674193,-790.04,0.00012597,2]
[344542960,1733538674203,-604.46,0.00012597,2]
[344542961,1733538674212,-618.41,0.00012597,2]
[344542962,1733538674223,-500.0,0.00012597,2]
[344542963,1733538674232,-500.0,0.00012597,2]
[344542964,1733538674242,-537.38,0.00012597,2]
[344542965,1733538674251,-500.0,0.00012597,2]
[344542966,1733538674260,-500.0,0.00012597,2]
[344542967,1733538674270,-521.67,0.00012597,2]
[344542968,1733538674280,-607.77,0.00012597,2]
[344542969,1733538674290,-500.0,0.00012597,2]
[344542970,1733538674299,-603.18,0.00012597,2]
[344542971,1733538674308,-500.0,0.00012597,2]
[344542972,1733538674318,-647.48,0.00012597,2]
[344542973,1733538674328,-607.67,0.00012597,2]
[344542974,1733538674337,-691.8,0.00012597,2]
[344542975,1733538674348,-500.0,0.00012597,2]
[344542976,1733538674358,-500.0,0.00012597,2]
[344542977,1733538674368,-197.872004,0.00012597,2]
[344542978,1733538674377,-500.0,0.00012597,2]
[344542979,1733538674387,-500.0,0.00012597,2]
[344542980,1733538674397,-500.0,0.00012597,2]
[344542981,1733538674407,-500.0,0.00012597,2]
[344542982,1733538674416,-728.64,0.00012597,2]
[344542983,1733538674426,-344.84354999,0.00012597,2]
[344542984,1733538674435,-500.0,0.00012597,2]
[344542985,1733538674446,-640.13,0.00012597,2]
[344542986,1733538674455,-500.0,0.00012597,2]
[344542987,1733538674467,-500.0,0.00012597,2]
[344542988,1733538674480,-1243.41,0.00012597,2]
[344542989,1733538674489,-500.0,0.00012597,2]
[344542990,1733538674499,-500.0,0.00012597,2]
[344542991,1733538674509,-500.0,0.00012597,2]
[344542992,1733538674518,-500.0,0.00012597,2]
[344542993,1733538674528,-500.0,0.00012597,2]
[344542994,1733538674537,-500.0,0.00012597,2]
[344542995,1733538674547,-535.81,0.00012597,2]
[344542996,1733538674557,-729.39,0.00012597,2]
[344542997,1733538674566,-500.0,0.00012597,2]
[344542998,1733538674576,-500.0,0.00012597,2]
[344542999,1733538674586,-993.22,0.00012597,2]
[344543000,1733538674595,-500.0,0.00012597,2]
[344543001,1733538674605,-559.72,0.00012597,2]
[344543002,1733538674615,-500.0,0.00012597,2]
[344543003,1733538674626,-500.0,0.00012597,2]
[344543004,1733538674637,-500.0,0.00012597,2]
[344543005,1733538674646,-500.0,0.00012597,2]
[344543006,1733538674656,-500.0,0.00012597,2]
[344543007,1733538674666,-500.0,0.00012597,2]
[344543008,1733538674675,-500.0,0.00012597,2]
[344543009,1733538674684,-500.0,0.00012597,2]
[344543010,1733538674694,-500.0,0.00012597,2]
[344543011,1733538674704,-617.62,0.00012597,2]
[344543012,1733538674714,-500.0,0.00012597,2]
[344543013,1733538674728,-500.0,0.00012597,2]
[344543014,1733538674738,-1318.28,0.00012597,2]
[344543015,1733538674748,-500.0,0.00012597,2]
[344543016,1733538674759,-742.57,0.00012597,2]
[344543017,1733538674769,-774.68,0.00012597,2]
[344543018,1733538674778,-500.0,0.00012597,2]
[344543019,1733538674788,-1979.9,0.00012597,2]
[344543020,1733538674799,-552.20233283,0.00012597,2]
[344543021,1733538674809,-500.0,0.00012597,2]
[344543022,1733538674819,-500.0,0.00012597,2]
[344543023,1733538674828,-500.0,0.00012597,2]
[344543024,1733538674838,-500.0,0.00012597,2]
[344543025,1733538674848,-500.0,0.00012597,2]
[344543026,1733538674857,-846.08,0.00012597,2]
[344543027,1733538674867,-500.0,0.00012597,2]
[344543028,1733538674876,-514.34,0.00012597,2]
[344543029,1733538674885,-500.0,0.00012597,2]
[344543030,1733538674894,-500.0,0.00012597,2]
[344543031,1733538674904,-500.0,0.00012597,2]
[344543032,1733538674915,-550.07,0.00012597,2]
[344543033,1733538674926,-522.22,0.00012597,2]
[344543034,1733538674936,-701.93,0.00012597,2]
[344543035,1733538674946,-393.40220424,0.00012597,2]
[344543036,1733538674955,-614.5,0.00012597,2]
[344543037,1733538674965,-500.0,0.00012597,2]
[344543038,1733538674977,-500.0,0.00012597,2]
[344543039,1733538674986,-500.0,0.00012597,2]
[344543040,1733538674996,-1144.35,0.00012597,2]
[344543041,1733538675005,-1041.71,0.00012597,2]
[344543042,1733538675015,-820.68,0.00012597,2]
[344543043,1733538675025,-631.36,0.00012597,2]
[344543044,1733538675035,-7329.42,0.00012597,2]
[344543045,1733538675045,-5670.47,0.00012597,2]
[344543046,1733538675055,-189.38144689,0.00012597,2]
[344543047,1733538675064,-1820.83,0.00012597,2]
[344543048,1733538675074,-674.3,0.00012597,2]
[344543049,1733538675084,-1395.19,0.00012597,2]
[344543050,1733538675093,-5538.23,0.00012597,2]
[344543051,1733538675102,-1023.74,0.00012597,2]
[344543052,1733538675112,-1929.61,0.00012597,2]
[344543053,1733538675121,-567.73,0.00012597,2]
[344543054,1733538675131,-1242.16,0.00012597,2]
[344543055,1733538675140,-1210.15,0.00012597,2]
[344543056,1733538675149,-707.46,0.00012597,2]
[344543057,1733538675159,-218.24540046,0.00012597,2]
[344543058,1733538675169,-500.0,0.00012597,2]
[344543059,1733538675179,-887.11,0.00012597,2]
[344543060,1733538675188,-500.0,0.00012597,2]
[344543061,1733538675199,-889.28,0.00012597,2]
[344543062,1733538675208,-662.41,0.00012597,2]
[344543063,1733538675217,-500.0,0.00012597,2]
[344543064,1733538675228,-2834.98,0.00012597,2]
[344543065,1733538675238,-4185.18,0.00012597,2]
[344543066,1733538675248,-862.26,0.00012597,2]
[344543067,1733538675258,-788.23,0.00012597,2]
[344543068,1733538675267,-1314.55,0.00012597,2]
[344543069,1733538675277,-928.97,0.00012597,2]
[344543070,1733538675287,-478.66988252,0.00012597,2]
[344543071,1733538678698,1500.0,9.895e-05,2]
[344543072,1733538703086,1417.88183515,9.634e-05,2]
[344543073,1733538945814,23900.0,9.674e-05,2]
[344543074,1733538969581,2996.0,0.0001,2]
[344543075,1733538979156,250.0,9.537e-05,2]
[344543077,1733539052742,250.0,9.38e-05,2]
[344543078,1733539222612,150.0,9.943e-05,2]
[344543079,1733539223387,3594.4,8.219e-05,2]
[344543080,1733539257795,167.18,9.242e-05,2]
[344543081,1733539263044,2196.66960485,0.0001,2]
[344543092,1733539381394,163.47,9.55e-05,2]
[344543093,1733539457416,150.0,9.292e-05,2]
[344543094,1733539458854,856.56,0.00016658,30]
[344543095,1733539458881,822.54,0.00016658,30]
[344543096,1733539469371,10000.0,0.00018,60]
[344543097,1733539472850,1000.0,9.288e-05,2]
[344543098,1733539477453,10000.0,0.00018,60]
[344543099,1733539478533,3000.0,0.00018,60]
[344543100,1733539491258,10000.0,0.00018,60]
[344543101,1733539492909,1543.9,9.288e-05,2]
[344543102,1733539494975,3000.0,0.00018,60]
[344543103,1733539500287,10000.0,0.00018,60]
[344543104,1733539504322,3000.0,0.00018,60]
[344543105,1733539512787,3000.0,0.00018,60]
[344543106,1733539516333,151.0,9.943e-05,2]
[344543107,1733539517114,6000.0,0.00018,60]
[344543108,1733539521031,3000.0,0.00018,60]
[344543109,1733539529134,2335.0,0.00018,60]
[344543110,1733539546494,3000.0,0.000165,60]
[344543111,1733539558335,3000.0,0.000165,60]
[344543112,1733539561687,835.27924591,0.00019,120]
[344543113,1733539566417,3000.0,0.000165,60]
[344543114,1733539575704,3000.0,0.000165,60]
[344543115,1733539584445,3000.0,0.000165,60]
[344543116,1733539588403,250.0,9.291e-05,2]
[344543117,1733539592546,3000.0,0.000165,60]
[344543118,1733539600636,3000.0,0.000165,60]
[344543119,1733539603073,23900.0,9.279e-05,2]
[344543120,1733539610095,3000.0,0.000165,60]
[344543132,1733539634623,430.45,0.000165,60]
[344543133,1733539648604,1000.0,0.000165,60]
[344543134,1733539649191,250.0,9.279e-05,2]
[344543135,1733539740726,250.0,9.286e-05,2]
[344543136,1733539805640,810.151,9.943e-05,2]
[344543137,1733539815671,2327.469,9.943e-05,2]
[344543138,1733539820884,150.0,9.943e-05,2]
[344543142,1733539832689,-182.18591358,0.00010007,2]
[344543143,1733539832699,-150.0,0.00010082,2]
[344543144,1733539832710,-300.0,0.00010105,2]
[344543145,1733539832720,-500.18,0.00010106,2]
[344543146,1733539832730,-490.79,0.00010106,2]
[344543147,1733539832741,-494.45,0.00010106,2]
[344543148,1733539832751,-507.65,0.00010106,2]
[344543149,1733539832761,-500.63,0.00010106,2]
[344543150,1733539832771,-507.29,0.00010106,2]
[344543151,1733539832781,-308.06924592,0.00010106,2]
[344543152,1733539832794,-185.55075408,0.00010106,2]
[344543153,1733539832804,-495.8,0.00010106,2]
[344543154,1733539832814,-236.26615935,0.00010106,2]
[344543155,1733539832825,-263.30384065,0.00010106,2]
[344543156,1733539832835,-227.31015935,0.00010107,2]
[344543157,1733539832847,-279.75984065,0.00010107,2]
[344543158,1733539832857,-495.71,0.00010107,2]
[344543159,1733539832867,-499.66,0.00010107,2]
[344543160,1733539832876,-500.23,0.00010107,2]
[344543161,1733539832886,-494.11,0.00010107,2]
[344543162,1733539832895,-501.87,0.00010107,2]
[344543163,1733539832905,-3076.53,0.00010107,2]
[344543164,1733539832914,-6281.62,0.00010107,2]
[344543165,1733539832923,-999.99,0.00010107,2]
[344543166,1733539832932,-490.92,0.00010107,2]
[344543167,1733539832942,-502.6,0.00010108,2]
[344543168,1733539832952,-508.03,0.00010109,2]
[344543169,1733539832962,-501.73,0.0001011,2]
[344543170,1733539832971,-497.74,0.00010111,2]
[344543172,1733539832981,-497.97,0.00010113,2]
[344543174,1733539832990,-490.39,0.00010116,2]
[344543176,1733539833000,-506.94,0.00010119,2]
[344543178,1733539833011,-508.25,0.00010124,2]
[344543179,1733539833021,-508.89,0.0001013,2]
[344543181,1733539833031,-495.65,0.00010139,2]
[344543183,1733539833041,-501.56,0.00010147,2]
[344543184,1733539833053,-509.34,0.00010147,2]
[344543185,1733539833064,-496.56,0.00010147,2]
[344543186,1733539833075,-503.48,0.00010147,2]
[344543187,1733539833085,-500.75,0.00010147,2]
[344543188,1733539833095,-497.98,0.00010147,2]
[344543189,1733539833105,-498.03,0.00010147,2]
[344543190,1733539833122,-508.42,0.00010147,2]
[344543191,1733539833133,-503.8,0.00010147,2]
[344543192,1733539833145,-508.71,0.00010147,2]
[344543193,1733539833155,-200.0,0.00010206,2]
[344543194,1733539833165,-1674.0,0.00010257,2]
[344543195,1733539833174,-500.0,0.00010304,2]
[344543196,1733539833184,-6767.44,0.00010304,2]
[344543197,1733539833195,-2028.0399,0.00010304,2]
[344543198,1733539833206,-3851.358,0.00010304,2]
[344543199,1733539833216,-2015.3604,0.00010304,2]
[344543200,1733539833226,-1000.0,0.00010305,2]
[344543201,1733539833235,-500.0,0.00010305,2]
[344543202,1733539833245,-432.5447,0.00010384,2]
[344543203,1733539833255,-167.18,0.00010398,2]
[344543204,1733539833267,-500.0,0.00010404,2]
[344543205,1733539833277,-500.0,0.00010404,2]
[344543206,1733539833287,-500.0,0.00010404,2]
[344543207,1733539833296,-500.0,0.00010404,2]
[344543208,1733539833306,-500.0,0.00010404,2]
[344543209,1733539833316,-500.0,0.00010404,2]
[344543210,1733539833325,-500.0,0.00010404,2]
[344543211,1733539833335,-500.0,0.00010404,2]
[344543212,1733539833344,-500.0,0.00010404,2]
[344543213,1733539833354,-340.6881849,0.00010404,2]
[344543214,1733539833364,-500.0,0.00010404,2]
[344543215,1733539833373,-500.0,0.00010404,2]
[344543216,1733539833383,-500.0,0.00010404,2]
[344543217,1733539833393,-500.0,0.00010404,2]
[344543218,1733539833403,-500.0,0.00010404,2]
[344543219,1733539833412,-163.99869999,0.00010404,2]
[344543220,1733539833422,-500.0,0.00010404,2]
[344543221,1733539833432,-1054.4,0.00010404,2]
[344543222,1733539833441,-632.49,0.00010404,2]
[344543223,1733539833451,-500.0,0.00010404,2]
[344543224,1733539833461,-697.83,0.00010404,2]
[344543225,1733539833470,-566.38,0.00010404,2]
[344543226,1733539833480,-507.58,0.00010404,2]
[344543227,1733539833489,-500.0,0.00010404,2]
[344543228,1733539833500,-500.0,0.00010404,2]
[344543229,1733539833510,-500.0,0.00010404,2]
[344543230,1733539833520,-790.74,0.00010404,2]
[344543231,1733539833534,-500.0,0.00010404,2]
[344543232,1733539833544,-500.0,0.00010404,2]
[344543233,1733539833554,-500.0,0.00010404,2]
[344543234,1733539833564,-500.0,0.00010404,2]
[344543235,1733539833573,-500.0,0.00010404,2]
[344543236,1733539833582,-634.88,0.00010404,2]
[344543237,1733539833592,-500.0,0.00010404,2]
[344543238,1733539833602,-500.0,0.00010404,2]
[344543239,1733539833611,-500.0,0.00010404,2]
[344543240,1733539833621,-500.0,0.00010404,2]
[344543241,1733539833630,-500.0,0.00010404,2]
[344543242,1733539833641,-500.0,0.00010404,2]
[344543243,1733539833651,-355.87905532,0.00010404,2]
[344543244,1733539833662,-500.0,0.00010404,2]
[344543245,1733539833672,-500.0,0.00010404,2]
[344543246,1733539833682,-500.0,0.00010404,2]
[344543247,1733539833692,-500.0,0.00010404,2]
[344543248,1733539833701,-500.0,0.00010404,2]
[344543249,1733539833711,-500.0,0.00010404,2]
[344543250,1733539833721,-562.49,0.00010404,2]
[344543251,1733539833730,-500.0,0.00010404,2]
[344543252,1733539833740,-500.0,0.00010404,2]
[344543253,1733539833750,-500.0,0.00010404,2]
[344543254,1733539833761,-509.43,0.00010404,2]
[344543255,1733539833771,-500.0,0.00010404,2]
[344543256,1733539833781,-500.0,0.00010404,2]
[344543257,1733539833791,-500.0,0.00010404,2]
[344543258,1733539833801,-500.0,0.00010404,2]
[344543259,1733539833810,-500.0,0.00010404,2]
[344543260,1733539833820,-500.0,0.00010404,2]
[344543261,1733539833830,-504.75641397,0.00010404,2]
[344543262,1733539833839,-500.0,0.00010404,2]
[344543263,1733539833849,-500.0,0.00010404,2]
[344543264,1733539833859,-432.64045537,0.00010404,2]
[344543265,1733539833868,-500.0,0.00010404,2]
[344543266,1733539833877,-500.0,0.00010404,2]
[344543267,1733539833887,-500.0,0.00010404,2]
[344543268,1733539833896,-500.0,0.00010404,2]
[344543269,1733539833906,-526.39942149,0.00010404,2]
[344543270,1733539833915,-500.0,0.00010404,2]
[344543271,1733539833925,-500.0,0.00010404,2]
[344543272,1733539833935,-500.0,0.00010404,2]
[344543273,1733539833944,-500.0,0.00010404,2]
[344543274,1733539833953,-500.0,0.00010404,2]
[344543275,1733539833963,-500.0,0.00010404,2]
[344543276,1733539833973,-500.0,0.00010404,2]
[344543277,1733539833982,-500.0,0.00010404,2]
[344543278,1733539833991,-500.0,0.00010404,2]
[344543279,1733539834001,-500.0,0.00010404,2]
[344543280,1733539834011,-500.0,0.00010404,2]
[344543281,1733539834024,-500.0,0.00010404,2]
[344543282,1733539834033,-500.0,0.00010404,2]
[344543283,1733539834042,-500.0,0.00010404,2]
[344543284,1733539834053,-500.0,0.00010404,2]
[344543285,1733539834063,-500.0,0.00010404,2]
[344543286,1733539834072,-500.0,0.00010404,2]
[344543287,1733539834081,-500.0,0.00010404,2]
[344543288,1733539834091,-500.0,0.00010404,2]
[344543289,1733539834100,-500.0,0.00010404,2]
[344543290,1733539834110,-500.0,0.00010404,2]
[344543291,1733539834123,-500.0,0.00010404,2]
[344543292,1733539834133,-500.0,0.00010404,2]
[344543293,1733539834142,-500.0,0.00010404,2]
[344543294,1733539834151,-684.34,0.00010404,2]
[344543295,1733539834162,-500.0,0.00010404,2]
[344543296,1733539834172,-500.0,0.00010404,2]
[344543297,1733539834181,-500.0,0.00010404,2]
[344543298,1733539834190,-500.0,0.00010404,2]
[344543299,1733539834200,-500.0,0.00010404,2]
[344543300,1733539834209,-500.0,0.00010404,2]
[344543301,1733539834218,-500.0,0.00010404,2]
[344543302,1733539834227,-500.0,0.00010404,2]
[344543303,1733539834237,-500.0,0.00010404,2]
[344543304,1733539834247,-500.0,0.00010404,2]
[344543305,1733539834256,-500.0,0.00010404,2]
[344543306,1733539834266,-528.8,0.00010404,2]
[344543307,1733539834276,-500.0,0.00010404,2]
[344543308,1733539834286,-500.0,0.00010404,2]
[344543309,1733539834296,-500.0,0.00010404,2]
[344543310,1733539834305,-500.0,0.00010404,2]
[344543311,1733539834315,-500.0,0.00010404,2]
[344543312,1733539834324,-500.0,0.00010404,2]
[344543313,1733539834333,-500.0,0.00010404,2]
[344543314,1733539834343,-500.0,0.00010404,2]
[344543315,1733539834352,-500.0,0.00010404,2]
[344543316,1733539834362,-395.53168764,0.00010404,2]
[344543317,1733539834371,-500.0,0.00010404,2]
[344543318,1733539834381,-500.0,0.00010404,2]
[344543319,1733539834390,-581.94,0.00010404,2]
[344543320,1733539834400,-500.0,0.00010404,2]
[344543321,1733539834409,-500.0,0.00010404,2]
[344543322,1733539834419,-500.0,0.00010404,2]
[344543323,1733539834428,-500.0,0.00010404,2]
[344543324,1733539834437,-500.0,0.00010404,2]
[344543325,1733539834447,-500.0,0.00010404,2]
[344543326,1733539834456,-500.0,0.00010404,2]
[344543327,1733539834465,-500.0,0.00010404,2]
[344543328,1733539834474,-500.0,0.00010404,2]
[344543329,1733539834484,-591.72705854,0.00010404,2]
[344543330,1733539834493,-500.0,0.00010404,2]
[344543331,1733539834503,-500.0,0.00010404,2]
[344543332,1733539834512,-500.0,0.00010404,2]
[344543333,1733539834521,-432.56642898,0.00010404,2]
[344543334,1733539834531,-500.0,0.00010404,2]
[344543335,1733539834541,-500.0,0.00010404,2]
[344543336,1733539834551,-2910.78,0.00010404,2]
[344543337,1733539834560,-500.0,0.00010404,2]
[344543338,1733539834570,-500.0,0.00010404,2]
[344543339,1733539834579,-500.0,0.00010404,2]
[344543340,1733539834589,-500.0,0.00010404,2]
[344543341,1733539834598,-500.0,0.00010404,2]
[344543342,1733539834608,-500.0,0.00010404,2]
[344543343,1733539834618,-500.0,0.00010404,2]